[Event "NJSK 2023 Meisjes B"]
[Site "Almelo, Netherlands"]
[Date "2023.04.30"]
[Round "1.1"]
[White "Kulikova, Polina"]
[Black "Verheij, Dana"]
[Result "0-1"]
[TimeControl "90min/40moves + 30min + 30sec/move"]
[WhiteElo "1589"]
[BlackElo "1846"]

1. d4 {[%clk 01:30:57]} {[%emt 00:00:03]} f5 {[%clk 01:30:52]} {[%emt
00:00:08]} 2. g3 {[%clk 01:31:08]} {[%emt 00:00:18]} Nf6 {[%clk 01:31:13]}
{[%emt 00:00:09]} 3. Bg2 {[%clk 01:31:23]} {[%emt 00:00:15]} g6 {[%clk
01:31:21]} {[%emt 00:00:22]} 4. c4 {[%clk 01:31:05]} {[%emt 00:00:47]} Bg7
{[%clk 01:31:24]} {[%emt 00:00:27]} 5. Nf3 {[%clk 01:31:06]} {[%emt 00:00:30]}
O-O {[%clk 01:31:25]} {[%emt 00:00:29]} 6. O-O {[%clk 01:30:49]} {[%emt
00:00:47]} d6 {[%clk 01:31:16]} {[%emt 00:00:40]} 7. Nc3 {[%clk 01:31:02]}
{[%emt 00:00:16]} c6 {[%clk 01:31:33]} {[%emt 00:00:13]} 8. Qb3 {[%clk
01:29:42]} {[%emt 00:01:50]} Na6 {[%clk 01:30:49]} {[%emt 00:01:14]} 9. Re1
{[%clk 01:26:26]} {[%emt 00:03:44]} Ne4 {[%clk 01:27:24]} {[%emt 00:03:56]} 10.
e3 {[%clk 01:23:30]} {[%emt 00:03:26]} Nxc3 {[%clk 01:19:03]} {[%emt 00:08:52]}
11. Qxc3 {[%clk 01:20:39]} {[%emt 00:03:19]} Qc7 {[%clk 01:13:47]} {[%emt
00:05:47]} 12. a3 {[%clk 01:05:31]} {[%emt 00:15:39]} e5 {[%clk 01:10:39]}
{[%emt 00:03:38]} 13. Qc2 {[%clk 00:52:24]} {[%emt 00:13:36]} e4 {[%clk
01:05:50]} {[%emt 00:05:20]} 14. Nd2 {[%clk 00:48:34]} {[%emt 00:04:20]} Be6
{[%clk 01:03:06]} {[%emt 00:03:14]} 15. Bh3 {[%clk 00:45:16]} {[%emt 00:03:48]}
Rfe8 {[%clk 00:57:20]} {[%emt 00:06:17]} 16. Rb1 {[%clk 00:42:38]} {[%emt
00:03:07]} Rac8 {[%clk 00:49:00]} {[%emt 00:08:50]} 17. b4 {[%clk 00:37:48]}
{[%emt 00:05:20]} b5 {[%clk 00:37:57]} {[%emt 00:11:34]} 18. c5 {[%clk
00:34:12]} {[%emt 00:04:06]} dxc5 {[%clk 00:34:56]} {[%emt 00:03:31]} 19. bxc5
{[%clk 00:32:22]} {[%emt 00:02:19]} Qa5 {[%clk 00:33:47]} {[%emt 00:01:40]} 20.
Bf1 {[%clk 00:27:31]} {[%emt 00:05:21]} Nc7 {[%clk 00:26:47]} {[%emt 00:07:31]}
21. Bb2 {[%clk 00:21:28]} {[%emt 00:06:33]} Nd5 {[%clk 00:17:44]} {[%emt
00:09:32]} 22. Nb3 {[%clk 00:16:44]} {[%emt 00:05:14]} Qc7 {[%clk 00:15:18]}
{[%emt 00:02:56]} 23. Bc3 {[%clk 00:15:36]} {[%emt 00:01:37]} Qf7 {[%clk
00:10:34]} {[%emt 00:05:15]} 24. Na5 {[%clk 00:14:28]} {[%emt 00:01:38]} g5
{[%clk 00:08:34]} {[%emt 00:02:31]} 25. Nxc6 {[%clk 00:10:32]} {[%emt
00:04:26]} Rxc6 {[%clk 00:09:01]} {[%emt 00:00:03]} 26. Bxb5 {[%clk 00:10:41]}
{[%emt 00:00:21]} Rcc8 {[%clk 00:09:06]} {[%emt 00:00:25]} 27. Bxe8 {[%clk
00:11:09]} {[%emt 00:00:02]} Rxe8 {[%clk 00:09:10]} {[%emt 00:00:27]} 28. Bd2
{[%clk 00:08:59]} {[%emt 00:02:40]} f4 {[%clk 00:04:13]} {[%emt 00:05:27]} 29.
exf4 {[%clk 00:07:30]} {[%emt 00:01:58]} Bf5 {[%clk 00:04:00]} {[%emt
00:00:43]} 30. Be3 {[%clk 00:02:59]} {[%emt 00:05:01]} gxf4 {[%clk 00:04:11]}
{[%emt 00:00:19]} 31. gxf4 {[%clk 00:02:14]} {[%emt 00:01:16]} Bh3 {[%clk
00:02:21]} {[%emt 00:02:21]} 32. f3 {[%clk 00:01:59]} {[%emt 00:00:44]} Nxe3
{[%clk 00:02:16]} {[%emt 00:00:35]} 33. Rxe3 {[%clk 00:01:55]} {[%emt
00:00:35]} Bxd4 {[%clk 00:02:36]} {[%emt 00:00:09]} 34. Rbe1 {[%clk 00:01:24]}
{[%emt 00:01:01]} exf3 {[%clk 00:02:19]} {[%emt 00:00:47]} 35. Kf2 {[%clk
00:00:53]} {[%emt 00:01:01]} Qxf4 {[%clk 00:01:39]} {[%emt 00:01:11]} 36. Qc4+
{[%clk 00:00:35]} {[%emt 00:00:49]} Kf8 {[%clk 00:01:10]} {[%emt 00:00:49]} 37.
Rc1 {[%clk 00:00:33]} {[%emt 00:00:42]} Bxe3+ {[%clk 00:01:04]} {[%emt
00:00:35]} 38. Ke1 {[%clk 00:00:35]} {[%emt 00:00:27]} Bxc1+ {[%clk 00:00:58]}
{[%emt 00:00:36]} 39. Qe2 {[%clk 00:00:38]} {[%emt 00:00:26]} Rxe2+ {[%clk
00:01:16]} {[%emt 00:00:13]} 40. Kd1 {[%clk 00:00:55]} {[%emt 00:00:14]} Qd2#
{[%clk 00:01:11]} {[%emt 00:00:04]} 0-1

[Event "NJSK 2023 Meisjes B"]
[Site "Almelo, Netherlands"]
[Date "2023.04.30"]
[Round "1.2"]
[White "Gergin, Isafara"]
[Black "Knobbe, Elise"]
[Result "1-0"]
[TimeControl "90min/40moves + 30min + 30sec/move"]
[WhiteElo "1762"]
[BlackElo "1584"]

1. e4 {[%clk 01:30:58]} c5 {[%clk 01:30:54]} {[%emt 00:00:06]} 2. Nf3 {[%clk
01:31:23]} {[%emt 00:00:05]} Nc6 {[%clk 01:31:18]} {[%emt 00:00:06]} 3. d4
{[%clk 01:31:43]} {[%emt 00:00:10]} cxd4 {[%clk 01:31:42]} {[%emt 00:00:06]} 4.
Nxd4 {[%clk 01:32:08]} {[%emt 00:00:05]} g6 {[%clk 01:32:05]} {[%emt 00:00:06]}
5. Be3 {[%clk 01:32:24]} {[%emt 00:00:15]} Bg7 {[%clk 01:32:25]} {[%emt
00:00:11]} 6. Nc3 {[%clk 01:32:20]} {[%emt 00:00:33]} Nf6 {[%clk 01:32:38]}
{[%emt 00:00:16]} 7. Be2 {[%clk 01:32:34]} {[%emt 00:00:17]} O-O {[%clk
01:32:55]} {[%emt 00:00:12]} 8. O-O {[%clk 01:32:50]} {[%emt 00:00:15]} d5
{[%clk 01:33:06]} {[%emt 00:00:20]} 9. exd5 {[%clk 01:32:25]} {[%emt 00:00:54]}
Nxd5 {[%clk 01:30:36]} {[%emt 00:03:00]} 10. Nxd5 {[%clk 01:31:18]} {[%emt
00:01:37]} Qxd5 {[%clk 01:30:37]} {[%emt 00:00:29]} 11. Bf3 {[%clk 01:30:00]}
{[%emt 00:01:47]} Qd7 {[%clk 01:28:09]} {[%emt 00:02:59]} 12. Nxc6 {[%clk
01:25:17]} {[%emt 00:05:13]} bxc6 {[%clk 01:27:37]} {[%emt 00:01:03]} 13. Qxd7
{[%clk 01:20:22]} {[%emt 00:05:25]} Bxd7 {[%clk 01:27:57]} {[%emt 00:00:10]} 14.
Rad1 {[%clk 01:18:53]} {[%emt 00:01:59]} Rfd8 {[%clk 01:20:27]} {[%emt
00:07:59]} 15. Rxd7 {[%clk 01:13:38]} {[%emt 00:05:45]} Rxd7 {[%clk 01:19:08]}
{[%emt 00:01:49]} 16. Bxc6 {[%clk 01:13:53]} {[%emt 00:00:16]} Rad8 {[%clk
01:19:04]} {[%emt 00:00:34]} 17. Bxd7 {[%clk 01:14:06]} {[%emt 00:00:16]} Rxd7
{[%clk 01:18:56]} {[%emt 00:00:39]} 18. b3 {[%clk 01:13:33]} {[%emt 00:01:03]}
Bc3 {[%clk 01:14:22]} {[%emt 00:05:04]} 19. Rb1 {[%clk 01:06:46]} {[%emt
00:07:17]} a5 {[%clk 01:08:48]} {[%emt 00:06:04]} 20. Kf1 {[%clk 01:03:27]}
{[%emt 00:03:47]} f5 {[%clk 01:01:49]} {[%emt 00:07:30]} 21. Ke2 {[%clk
00:59:19]} {[%emt 00:04:38]} e5 {[%clk 00:57:34]} {[%emt 00:04:45]} 22. g3
{[%clk 00:51:05]} {[%emt 00:08:43]} Kf7 {[%clk 00:53:12]} {[%emt 00:04:52]} 23.
Rd1 {[%clk 00:47:15]} {[%emt 00:04:20]} Rxd1 {[%clk 00:48:54]} {[%emt
00:04:48]} 24. Kxd1 {[%clk 00:47:35]} {[%emt 00:00:10]} Ke6 {[%clk 00:44:52]}
{[%emt 00:04:32]} 25. Ke2 {[%clk 00:43:54]} {[%emt 00:04:10]} e4 {[%clk
00:42:51]} {[%emt 00:02:32]} 26. Bd2 {[%clk 00:32:42]} {[%emt 00:11:43]} Bxd2
{[%clk 00:33:42]} {[%emt 00:09:39]} 27. Kxd2 {[%clk 00:32:57]} {[%emt
00:00:15]} g5 {[%clk 00:33:11]} {[%emt 00:01:01]} 28. c3 {[%clk 00:23:24]}
{[%emt 00:10:02]} Kd5 {[%clk 00:18:54]} {[%emt 00:14:47]} 29. a4 {[%clk
00:17:43]} {[%emt 00:06:11]} Kc5 {[%clk 00:18:50]} {[%emt 00:00:34]} 30. Ke3
{[%clk 00:16:34]} {[%emt 00:01:39]} h6 {[%clk 00:18:17]} {[%emt 00:01:03]} 31.
f3 {[%clk 00:15:06]} {[%emt 00:01:58]} exf3 {[%clk 00:17:11]} {[%emt 00:01:36]}
32. Kxf3 {[%clk 00:15:07]} {[%emt 00:00:29]} h5 {[%clk 00:16:09]} {[%emt
00:01:33]} 33. h4 {[%clk 00:14:01]} {[%emt 00:01:36]} gxh4 {[%clk 00:16:03]}
{[%emt 00:00:35]} 34. gxh4 {[%clk 00:14:25]} {[%emt 00:00:07]} Kd5 {[%clk
00:16:15]} {[%emt 00:00:18]} 35. Kf4 {[%clk 00:14:23]} {[%emt 00:00:31]} Ke6
{[%clk 00:16:25]} {[%emt 00:00:20]} 36. b4 {[%clk 00:14:35]} {[%emt 00:00:19]}
axb4 {[%clk 00:16:42]} {[%emt 00:00:13]} 37. cxb4 {[%clk 00:15:00]} {[%emt
00:00:06]} Kd5 {[%clk 00:17:03]} {[%emt 00:00:08]} 38. Kxf5 {[%clk 00:15:01]}
{[%emt 00:00:29]} Kc4 {[%clk 00:17:24]} {[%emt 00:00:10]} 39. b5 {[%clk
00:15:17]} {[%emt 00:00:14]} Kc5 {[%clk 00:17:38]} {[%emt 00:00:15]} 40. Kg5
{[%clk 00:15:38]} {[%emt 00:00:09]} Kb6 {[%clk 00:18:00]} {[%emt 00:00:08]} 41.
Kxh5 {[%clk 00:16:00]} {[%emt 00:00:07]} Ka5 {[%clk 00:18:20]} {[%emt
00:00:10]} 42. Kg5 {[%clk 00:16:22]} {[%emt 00:00:09]} Kb6 {[%clk 00:18:45]}
{[%emt 00:00:06]} 43. h5 {[%clk 00:16:44]} {[%emt 00:00:08]} Ka5 {[%clk
00:19:09]} {[%emt 00:00:06]} 44. h6 {[%clk 00:17:07]} {[%emt 00:00:07]} Kb6
{[%clk 00:19:35]} {[%emt 00:00:03]} 45. h7 {[%clk 00:17:30]} {[%emt 00:00:07]}
Ka5 {[%clk 00:19:57]} {[%emt 00:00:08]} 46. h8=Q {[%clk 00:17:47]} {[%emt
00:00:12]} Kb6 {[%clk 00:20:21]} {[%emt 00:00:07]} 47. Qc3 {[%clk 00:17:12]}
{[%emt 00:01:05]} Kb7 {[%clk 00:20:42]} {[%emt 00:00:09]} 48. a5 {[%clk
00:17:19]} {[%emt 00:00:23]} Ka7 {[%clk 00:20:57]} {[%emt 00:00:15]} 49. b6+
{[%clk 00:17:14]} {[%emt 00:00:36]} Kb8 {[%clk 00:21:16]} {[%emt 00:00:11]} 50.
Qc7+ {[%clk 00:17:35]} {[%emt 00:00:09]} Ka8 {[%clk 00:21:42]} {[%emt
00:00:04]} 51. Qa7# {[%clk 00:17:59]} {[%emt 00:00:06]} 1-0

[Event "NJSK 2023 Meisjes B"]
[Site "Almelo, Netherlands"]
[Date "2023.04.30"]
[Round "1.3"]
[White "Luijkx, Dagmar"]
[Black "Feng, Elysia"]
[Result "0-1"]
[TimeControl "90min/40moves + 30min + 30sec/move"]
[WhiteElo "1559"]
[BlackElo "1697"]

1. d4 {[%clk 01:30:50]} {[%emt 00:00:09]} d5 {[%clk 01:30:52]} {[%emt
00:00:08]} 2. Bf4 {[%clk 01:31:09]} {[%emt 00:00:11]} Nf6 {[%clk 01:30:40]}
{[%emt 00:00:42]} 3. e3 {[%clk 01:30:49]} {[%emt 00:00:50]} e6 {[%clk
01:29:23]} {[%emt 00:01:46]} 4. Nf3 {[%clk 01:29:30]} {[%emt 00:01:50]} c5
{[%clk 01:29:29]} {[%emt 00:00:23]} 5. c3 {[%clk 01:28:29]} {[%emt 00:01:33]}
Nc6 {[%clk 01:28:57]} {[%emt 00:01:01]} 6. Nbd2 {[%clk 01:22:00]} {[%emt
00:06:59]} Bd6 {[%clk 01:26:29]} {[%emt 00:02:57]} 7. Bg3 {[%clk 01:21:22]}
{[%emt 00:01:09]} O-O {[%clk 01:25:44]} {[%emt 00:01:15]} 8. Bd3 {[%clk
01:20:44]} {[%emt 00:01:09]} Re8 {[%clk 01:24:24]} {[%emt 00:01:50]} 9. b3
{[%clk 01:15:42]} {[%emt 00:05:32]} e5 {[%clk 01:20:34]} {[%emt 00:04:20]} 10.
dxe5 {[%clk 01:15:13]} {[%emt 00:00:59]} Nxe5 {[%clk 01:20:42]} {[%emt
00:00:21]} 11. Nxe5 {[%clk 01:15:22]} {[%emt 00:00:21]} Bxe5 {[%clk 01:21:09]}
{[%emt 00:00:03]} 12. Bxe5 {[%clk 01:13:51]} {[%emt 00:02:01]} Rxe5 {[%clk
01:21:34]} {[%emt 00:00:05]} 13. Nf3 {[%clk 01:12:24]} {[%emt 00:01:56]} Re8
{[%clk 01:11:27]} {[%emt 00:10:36]} 14. O-O {[%clk 01:07:09]} {[%emt 00:05:46]}
Bg4 {[%clk 01:10:50]} {[%emt 00:01:06]} 15. h3 {[%clk 01:05:16]} {[%emt
00:02:24]} Bh5 {[%clk 01:11:09]} {[%emt 00:00:11]} 16. Bb5 {[%clk 00:56:40]}
{[%emt 00:09:06]} Re7 {[%clk 01:08:18]} {[%emt 00:03:21]} 17. Be2 {[%clk
00:52:59]} {[%emt 00:04:11]} Ne4 {[%clk 01:03:38]} {[%emt 00:05:10]} 18. Qc2
{[%clk 00:45:14]} {[%emt 00:08:15]} Qa5 {[%clk 00:56:15]} {[%emt 00:07:54]} 19.
Rac1 {[%clk 00:41:40]} {[%emt 00:04:04]} Rd8 {[%clk 00:49:55]} {[%emt
00:06:49]} 20. Rfe1 {[%clk 00:39:56]} {[%emt 00:02:14]} b5 {[%clk 00:44:51]}
{[%emt 00:05:34]} 21. Nh4 {[%clk 00:38:57]} {[%emt 00:01:29]} Bxe2 {[%clk
00:39:11]} {[%emt 00:06:10]} 22. Rxe2 {[%clk 00:38:45]} {[%emt 00:00:43]} Qb6
{[%clk 00:36:18]} {[%emt 00:03:23]} 23. Nf3 {[%clk 00:34:25]} {[%emt 00:04:50]}
a5 {[%clk 00:30:30]} {[%emt 00:06:18]} 24. Nd2 {[%clk 00:32:56]} {[%emt
00:01:59]} Rde8 {[%clk 00:27:45]} {[%emt 00:03:14]} 25. c4 {[%clk 00:29:55]}
{[%emt 00:03:31]} dxc4 {[%clk 00:24:37]} {[%emt 00:03:38]} 26. bxc4 {[%clk
00:29:00]} {[%emt 00:01:26]} b4 {[%clk 00:24:56]} {[%emt 00:00:11]} 27. Nxe4
{[%clk 00:28:51]} {[%emt 00:00:39]} Rxe4 {[%clk 00:25:24]} {[%emt 00:00:02]} 28.
Rb1 {[%clk 00:28:32]} {[%emt 00:00:50]} Qe6 {[%clk 00:23:34]} {[%emt 00:02:19]}
29. Qc1 {[%clk 00:25:56]} {[%emt 00:03:06]} Rxc4 {[%clk 00:22:42]} {[%emt
00:01:22]} 30. Rc2 {[%clk 00:26:00]} {[%emt 00:00:26]} Rxc2 {[%clk 00:23:05]}
{[%emt 00:00:07]} 31. Qxc2 {[%clk 00:26:28]} {[%emt 00:00:01]} c4 {[%clk
00:21:19]} {[%emt 00:02:16]} 32. Qa4 {[%clk 00:26:08]} {[%emt 00:00:50]} Qe5
{[%clk 00:21:08]} {[%emt 00:00:41]} 33. Re1 {[%clk 00:23:48]} {[%emt 00:02:50]}
Rb8 {[%clk 00:19:27]} {[%emt 00:02:11]} 34. a3 {[%clk 00:22:25]} {[%emt
00:01:53]} Qc3 {[%clk 00:17:45]} {[%emt 00:02:11]} 35. Rb1 {[%clk 00:21:48]}
{[%emt 00:01:08]} Qd3 {[%clk 00:17:26]} {[%emt 00:00:49]} 36. Rb2 {[%clk
00:21:33]} {[%emt 00:00:45]} c3 {[%clk 00:17:47]} {[%emt 00:00:09]} 37. Qc2
{[%clk 00:19:18]} {[%emt 00:02:44]} Qxc2 {[%clk 00:17:48]} {[%emt 00:00:30]} 38.
Rxc2 {[%clk 00:19:46]} {[%emt 00:00:02]} bxa3 {[%clk 00:18:02]} {[%emt
00:00:16]} 39. Rxc3 {[%clk 00:20:01]} {[%emt 00:00:15]} a2 {[%clk 00:18:27]}
{[%emt 00:00:05]} 40. Rc1 {[%clk 00:18:46]} {[%emt 00:01:44]} Rb1 {[%clk
00:18:52]} {[%emt 00:00:05]} 41. Rxb1 {[%clk 00:19:02]} {[%emt 00:00:14]}
axb1=Q+ {[%clk 00:19:17]} {[%emt 00:00:03]} 42. Kh2 {[%clk 00:19:10]} {[%emt
00:00:24]} a4 {[%clk 00:19:29]} {[%emt 00:00:19]} 43. f4 {[%clk 00:19:32]}
{[%emt 00:00:07]} Qe1 {[%clk 00:19:49]} {[%emt 00:00:10]} 0-1

[Event "NJSK 2023 Meisjes B"]
[Site "Almelo, Netherlands"]
[Date "2023.04.30"]
[Round "1.4"]
[White "Tangarife Ramirez, Katja"]
[Black "Wortman, Manixia"]
[Result "1-0"]
[TimeControl "90min/40moves + 30min + 30sec/move"]
[WhiteElo "1667"]
[BlackElo "1493"]

1. d4 {[%clk 01:30:55]} {[%emt 00:00:04]} Nf6 {[%clk 01:30:54]} {[%emt
00:00:07]} 2. Nf3 {[%clk 01:31:18]} {[%emt 00:00:07]} e6 {[%clk 01:31:03]}
{[%emt 00:00:21]} 3. c4 {[%clk 01:31:28]} {[%emt 00:00:19]} Bb4+ {[%clk
01:30:02]} {[%emt 00:01:32]} 4. Bd2 {[%clk 01:30:52]} {[%emt 00:01:05]} Bxd2+
{[%clk 01:29:27]} {[%emt 00:01:06]} 5. Qxd2 {[%clk 01:30:01]} {[%emt 00:01:21]}
d5 {[%clk 01:28:43]} {[%emt 00:01:14]} 6. g3 {[%clk 01:24:43]} {[%emt
00:05:48]} O-O {[%clk 01:27:57]} {[%emt 00:01:16]} 7. Bg2 {[%clk 01:24:49]}
{[%emt 00:00:23]} Nbd7 {[%clk 01:24:06]} {[%emt 00:04:21]} 8. O-O {[%clk
01:22:11]} {[%emt 00:03:08]} c5 {[%clk 01:12:58]} {[%emt 00:11:38]} 9. Rc1
{[%clk 01:12:23]} {[%emt 00:10:18]} cxd4 {[%clk 01:04:50]} {[%emt 00:08:39]} 10.
cxd5 {[%clk 01:04:26]} {[%emt 00:08:27]} e5 {[%clk 01:03:52]} {[%emt 00:01:28]}
11. Qb4 {[%clk 00:54:08]} {[%emt 00:10:47]} Nxd5 {[%clk 01:00:13]} {[%emt
00:04:10]} 12. Qd6 {[%clk 00:54:09]} {[%emt 00:00:29]} N5f6 {[%clk 00:51:54]}
{[%emt 00:08:48]} 13. Nxe5 {[%clk 00:52:49]} {[%emt 00:01:50]} Nxe5 {[%clk
00:52:01]} {[%emt 00:00:24]} 14. Qxe5 {[%clk 00:53:07]} {[%emt 00:00:11]} Re8
{[%clk 00:52:04]} {[%emt 00:00:28]} 15. Qb5 {[%clk 00:51:35]} {[%emt 00:02:02]}
a6 {[%clk 00:47:09]} {[%emt 00:05:25]} 16. Qd3 {[%clk 00:48:44]} {[%emt
00:03:21]} Bg4 {[%clk 00:46:11]} {[%emt 00:01:28]} 17. Re1 {[%clk 00:40:43]}
{[%emt 00:08:31]} Rb8 {[%clk 00:43:07]} {[%emt 00:03:34]} 18. Nd2 {[%clk
00:39:33]} {[%emt 00:01:40]} Nd5 {[%clk 00:37:06]} {[%emt 00:06:31]} 19. Qxd4
{[%clk 00:35:46]} {[%emt 00:04:17]} Bxe2 {[%clk 00:35:43]} {[%emt 00:01:53]} 20.
Bxd5 {[%clk 00:30:39]} {[%emt 00:05:37]} Bb5 {[%clk 00:28:26]} {[%emt
00:07:47]} 21. Rxe8+ {[%clk 00:28:14]} {[%emt 00:02:54]} Qxe8 {[%clk 00:28:32]}
{[%emt 00:00:25]} 22. Qe4 {[%clk 00:24:45]} {[%emt 00:04:00]} Qd7 {[%clk
00:25:32]} {[%emt 00:03:30]} 23. Nf3 {[%clk 00:21:49]} {[%emt 00:03:26]} 1-0

[Event "NJSK 2023 Meisjes B"]
[Site "Almelo, Netherlands"]
[Date "2023.04.30"]
[Round "1.5"]
[White "Yildirim, Azra"]
[Black "Ganeshram, Nirupa"]
[Result "1/2-1/2"]
[TimeControl "90min/40moves + 30min + 30sec/move"]
[WhiteElo "1275"]
[BlackElo "1629"]

1. c4 {[%clk 01:30:53]} {[%emt 00:00:06]} e6 {[%clk 01:30:50]} {[%emt
00:00:10]} 2. Nc3 {[%clk 01:30:33]} {[%emt 00:00:51]} d5 {[%clk 01:31:10]}
{[%emt 00:00:10]} 3. cxd5 {[%clk 01:29:52]} {[%emt 00:01:11]} exd5 {[%clk
01:31:30]} {[%emt 00:00:10]} 4. d4 {[%clk 01:30:02]} {[%emt 00:00:21]} Nf6
{[%clk 01:30:55]} {[%emt 00:01:05]} 5. Bg5 {[%clk 01:27:27]} {[%emt 00:03:05]}
Be7 {[%clk 01:26:48]} {[%emt 00:04:36]} 6. Nf3 {[%clk 01:25:07]} {[%emt
00:02:50]} c6 {[%clk 01:24:21]} {[%emt 00:02:57]} 7. e3 {[%clk 01:22:00]}
{[%emt 00:03:37]} Bf5 {[%clk 01:23:18]} {[%emt 00:01:32]} 8. Bxf6 {[%clk
01:14:24]} {[%emt 00:08:07]} Bxf6 {[%clk 01:23:34]} {[%emt 00:00:14]} 9. Bd3
{[%clk 01:14:34]} {[%emt 00:00:20]} Bg6 {[%clk 01:22:16]} {[%emt 00:01:48]} 10.
O-O {[%clk 01:13:24]} {[%emt 00:01:41]} Nd7 {[%clk 01:21:00]} {[%emt 00:01:46]}
11. Re1 {[%clk 01:12:14]} {[%emt 00:01:40]} O-O {[%clk 01:18:14]} {[%emt
00:03:16]} 12. e4 {[%clk 01:10:46]} {[%emt 00:01:58]} dxe4 {[%clk 01:14:17]}
{[%emt 00:04:27]} 13. Nxe4 {[%clk 01:07:29]} {[%emt 00:03:47]} Bxe4 {[%clk
01:09:18]} {[%emt 00:05:29]} 14. Bxe4 {[%clk 01:03:00]} {[%emt 00:05:00]} Nb6
{[%clk 01:07:40]} {[%emt 00:02:08]} 15. Qc2 {[%clk 01:01:37]} {[%emt 00:01:53]}
h6 {[%clk 01:06:52]} {[%emt 00:01:17]} 16. Rad1 {[%clk 01:00:42]} {[%emt
00:01:25]} Qd6 {[%clk 01:01:17]} {[%emt 00:06:05]} 17. a4 {[%clk 00:54:31]}
{[%emt 00:06:42]} Rad8 {[%clk 00:57:56]} {[%emt 00:03:50]} 18. a5 {[%clk
00:53:15]} {[%emt 00:01:46]} Nd5 {[%clk 00:57:22]} {[%emt 00:01:04]} 19. Ne5
{[%clk 00:45:37]} {[%emt 00:08:08]} Qb4 {[%clk 00:41:35]} {[%emt 00:16:16]} 20.
a6 {[%clk 00:35:48]} {[%emt 00:10:19]} Bxe5 {[%clk 00:31:08]} {[%emt 00:10:56]}
21. dxe5 {[%clk 00:33:24]} {[%emt 00:02:54]} bxa6 {[%clk 00:25:36]} {[%emt
00:06:03]} 22. Qxc6 {[%clk 00:31:43]} {[%emt 00:02:10]} Ne7 {[%clk 00:24:42]}
{[%emt 00:01:24]} 23. Qc2 {[%clk 00:30:35]} {[%emt 00:01:38]} Rb8 {[%clk
00:22:55]} {[%emt 00:02:16]} 24. Rd2 {[%clk 00:28:57]} {[%emt 00:02:09]} Rfc8
{[%clk 00:20:37]} {[%emt 00:02:49]} 25. Red1 {[%clk 00:26:52]} {[%emt
00:02:35]} g6 {[%clk 00:18:12]} {[%emt 00:02:54]} 26. Qd3 {[%clk 00:22:06]}
{[%emt 00:05:17]} Rc4 {[%clk 00:12:34]} {[%emt 00:06:08]} 27. Bd5 {[%clk
00:18:56]} {[%emt 00:03:39]} Rc5 {[%clk 00:06:53]} {[%emt 00:06:11]} 28. Qe2
{[%clk 00:06:40]} {[%emt 00:12:46]} Rbc8 {[%clk 00:05:23]} {[%emt 00:02:00]} 29.
e6 {[%clk 00:04:57]} {[%emt 00:02:12]} Nxd5 {[%clk 00:02:31]} {[%emt 00:03:21]}
30. exf7+ {[%clk 00:02:53]} {[%emt 00:02:35]} Kxf7 {[%clk 00:01:50]} {[%emt
00:01:11]} 31. Qf3+ {[%clk 00:02:07]} {[%emt 00:01:16]} Qf4 {[%clk 00:01:20]}
{[%emt 00:01:00]} 32. Rxd5 {[%clk 00:02:15]} {[%emt 00:00:22]} Qxf3 {[%clk
00:01:36]} {[%emt 00:00:14]} 33. Rd7+ {[%clk 00:02:24]} {[%emt 00:00:21]} Ke8
{[%clk 00:01:19]} {[%emt 00:00:46]} 34. gxf3 {[%clk 00:02:41]} {[%emt
00:00:14]} R8c7 {[%clk 00:01:15]} {[%emt 00:00:35]} 35. Rxc7 {[%clk 00:02:42]}
{[%emt 00:00:29]} Rxc7 {[%clk 00:01:40]} {[%emt 00:00:05]} 36. Rd6 {[%clk
00:02:55]} {[%emt 00:00:17]} Kf7 {[%clk 00:02:01]} {[%emt 00:00:09]} 37. Rxa6
{[%clk 00:03:16]} {[%emt 00:00:08]} Rb7 {[%clk 00:02:23]} {[%emt 00:00:09]} 38.
Kg2 {[%clk 00:03:37]} {[%emt 00:00:09]} Rxb2 {[%clk 00:02:11]} {[%emt
00:00:41]} 39. Rxa7+ {[%clk 00:04:02]} {[%emt 00:00:05]} Kf6 {[%clk 00:02:35]}
{[%emt 00:00:07]} 40. Kg3 {[%clk 00:03:55]} {[%emt 00:00:36]} Rb5 {[%clk
00:02:49]} {[%emt 00:00:16]} 41. h4 {[%clk 00:03:21]} {[%emt 00:01:04]} h5
{[%clk 00:02:36]} {[%emt 00:00:43]} 42. f4 {[%clk 00:03:04]} {[%emt 00:00:48]}
Rb3+ {[%clk 00:29:58]} {[%emt 00:03:08]} 43. f3 {[%clk 00:32:48]} {[%emt
00:00:46]} Rb5 {[%clk 00:30:14]} {[%emt 00:00:14]} 44. Ra6+ {[%clk 00:31:53]}
{[%emt 00:01:26]} Kf5 {[%clk 00:30:27]} {[%emt 00:00:16]} 45. Ra8 {[%clk
00:31:46]} {[%emt 00:00:36]} Rb6 {[%clk 00:29:09]} {[%emt 00:01:48]} 46. Rf8+
{[%clk 00:31:39]} {[%emt 00:00:37]} Rf6 {[%clk 00:29:21]} {[%emt 00:00:18]} 47.
Rxf6+ {[%clk 00:31:31]} {[%emt 00:00:39]} Kxf6 {[%clk 00:29:45]} {[%emt
00:00:06]} 48. Kf2 {[%clk 00:31:54]} {[%emt 00:00:07]} Ke6 {[%clk 00:30:01]}
{[%emt 00:00:14]} 49. Ke2 {[%clk 00:31:49]} {[%emt 00:00:35]} Kf6 {[%clk
00:29:41]} {[%emt 00:00:50]} 50. Kf2 {[%clk 00:32:06]} {[%emt 00:00:13]}
1/2-1/2